fUST/lending_fUST_20241214
["ID","MTS","AMOUNT","RATE_DAILY","PERIOD"]
[345345014,1734166232719,-500.0,0.00027939,7]
[345345015,1734166232728,-500.0,0.00027939,7]
[345345016,1734166232737,-500.0,0.0002794,7]
[345345017,1734166232747,-500.0,0.0002794,7]
[345345018,1734166232756,-500.0,0.0002794,7]
[345345019,1734166232765,-500.0,0.0002794,7]
[345345020,1734166232775,-500.0,0.0002794,7]
[345345021,1734166232784,-500.0,0.0002794,7]
[345345022,1734166232792,-500.0,0.0002794,7]
[345345023,1734166232801,-1742.3,0.00028212,7]
[345345024,1734166232811,-500.0,0.00028212,7]
[345345025,1734166232820,-500.0,0.00028212,7]
[345345026,1734166232830,-500.0,0.00028212,7]
[345345027,1734166232839,-500.0,0.00028212,7]
[345345028,1734166232851,-500.0,0.00028212,7]
[345345029,1734166232860,-500.0,0.00028212,7]
[345345030,1734166232870,-468.40310154,0.00028212,7]
[345345031,1734166232879,-500.0,0.00028212,7]
[345345032,1734166232888,-500.0,0.00028212,7]
[345345033,1734166232897,-500.0,0.00028212,7]
[345345034,1734166232907,-500.0,0.00028212,7]
[345345035,1734166232916,-1060.61,0.00028212,7]
[345345036,1734166232926,-500.0,0.00028212,7]
[345345037,1734166232935,-500.0,0.00028212,7]
[345345038,1734166232944,-2515.35,0.00028212,7]
[345345039,1734166232953,-500.0,0.00028212,7]
[345345040,1734166232963,-500.0,0.00028212,7]
[345345041,1734166232972,-500.0,0.00028212,7]
[345345042,1734166232981,-513.38,0.00028212,7]
[345345043,1734166232991,-500.0,0.00028212,7]
[345345044,1734166233001,-977.76,0.00028212,5]
[345345045,1734166233010,-500.0,0.00028212,7]
[345345046,1734166233020,-500.0,0.00028212,7]
[345345047,1734166233029,-500.0,0.00028213,7]
[345345048,1734166233039,-500.0,0.00028213,7]
[345345049,1734166233049,-500.0,0.00028213,7]
[345345050,1734166233059,-500.0,0.00028213,7]
[345345051,1734166233069,-500.0,0.00028213,7]
[345345052,1734166233080,-168.0,0.00028213,7]
[345345053,1734166233090,-500.0,0.00028213,7]
[345345054,1734166233105,-500.0,0.00028213,7]
[345345055,1734166233116,-500.0,0.00028213,7]
[345345056,1734166233127,-500.0,0.00028213,7]
[345345057,1734166233138,-500.0,0.00028213,7]
[345345058,1734166233149,-500.0,0.00028213,7]
[345345059,1734166233158,-500.0,0.00028213,7]
[345345060,1734166233169,-500.0,0.00028213,7]
[345345061,1734166233178,-500.0,0.00028213,7]
[345345062,1734166233189,-500.0,0.00028213,7]
[345345063,1734166233199,-500.0,0.00028213,7]
[345345064,1734166233209,-500.0,0.00028213,7]
[345345065,1734166233221,-500.0,0.00028214,7]
[345345066,1734166233232,-500.0,0.00028214,7]
[345345067,1734166233244,-500.0,0.00028214,7]
[345345068,1734166233254,-434.83993953,0.00028214,7]
[345345069,1734166233265,-500.0,0.00028214,7]
[345345070,1734166233275,-366.88544265,0.00028214,7]
[345345071,1734166233286,-500.0,0.00028214,7]
[345345072,1734166233297,-500.0,0.00028214,7]
[345345073,1734166233307,-1742.3,0.00028486,7]
[345345074,1734166233318,-500.0,0.00028486,7]
[345345075,1734166233328,-500.0,0.00028486,7]
[345345076,1734166233338,-500.0,0.00028486,7]
[345345077,1734166233352,-500.0,0.00028486,7]
[345345078,1734166233362,-500.0,0.00028486,7]
[345345079,1734166233377,-500.0,0.00028486,7]
[345345080,1734166233387,-500.0,0.00028486,7]
[345345081,1734166233397,-500.0,0.00028486,7]
[345345082,1734166233407,-500.0,0.00028486,7]
[345345083,1734166233416,-1060.61,0.00028486,7]
[345345084,1734166233425,-500.0,0.00028486,7]
[345345085,1734166233435,-500.0,0.00028486,7]
[345345086,1734166233445,-2515.35,0.00028486,7]
[345345087,1734166233455,-500.0,0.00028486,7]
[345345088,1734166233468,-500.0,0.00028486,7]
[345345089,1734166233478,-500.0,0.00028486,7]
[345345090,1734166233487,-513.38,0.00028486,7]
[345345091,1734166233497,-500.0,0.00028486,7]
[345345092,1734166233506,-977.76,0.00028486,5]
[345345093,1734166233516,-500.0,0.00028486,7]
[345345094,1734166233526,-500.0,0.00028486,7]
[345345095,1734166233536,-479.92634614,0.00028487,7]
[345345096,1734166233546,-500.0,0.00028487,7]
[345345097,1734166233555,-500.0,0.00028487,7]
[345345098,1734166233565,-500.0,0.00028487,7]
[345345099,1734166233574,-261.74256017,0.00028487,7]
[345345100,1734166233584,-500.0,0.00028487,7]
[345345101,1734166233593,-500.0,0.00028487,7]
[345345102,1734166233606,-500.0,0.00028487,7]
[345345103,1734166233616,-500.0,0.00028487,7]
[345345104,1734166233626,-500.0,0.00028487,7]
[345345105,1734166233635,-500.0,0.00028487,7]
[345345106,1734166233645,-500.0,0.00028487,7]
[345345107,1734166233655,-500.0,0.00028487,7]
[345345108,1734166233664,-382.43544326,0.00028487,7]
[345345109,1734166233673,-500.0,0.00028487,7]
[345345110,1734166233683,-500.0,0.00028487,7]
[345345111,1734166233693,-500.0,0.00028488,7]
[345345112,1734166233702,-318.64791754,0.00028488,7]
[345345113,1734166233712,-452.180775,0.00028488,7]
[345345114,1734166233721,-500.0,0.00028488,7]
[345345115,1734166233731,-444.766,0.0002861,2]
[345345116,1734166233740,-1742.3,0.0002876,7]
[345345117,1734166233750,-500.0,0.0002876,7]
[345345118,1734166233760,-500.0,0.0002876,7]
[345345119,1734166233770,-500.0,0.0002876,7]
[345345120,1734166233779,-500.0,0.0002876,7]
[345345121,1734166233788,-500.0,0.0002876,7]
[345345122,1734166233798,-1060.61,0.0002876,7]
[345345123,1734166233807,-500.0,0.0002876,7]
[345345124,1734166233816,-2515.35,0.0002876,7]
[345345125,1734166233826,-500.0,0.0002876,7]
[345345126,1734166233835,-500.0,0.0002876,7]
[345345127,1734166233847,-513.38,0.0002876,7]
[345345128,1734166233856,-500.0,0.0002876,7]
[345345129,1734166233866,-977.76,0.0002876,5]
[345345130,1734166233875,-500.0,0.0002876,7]
[345345131,1734166233885,-500.0,0.00028761,7]
[345345132,1734166234007,-500.0,0.00028761,7]
[345345133,1734166234018,-157.73129098,0.00028761,7]
[345345134,1734166234028,-500.0,0.00028761,7]
[345345135,1734166234038,-500.0,0.00028761,7]
[345345136,1734166234047,-531.19702743,0.00028761,7]
[345345137,1734166234057,-500.0,0.00028761,7]
[345345138,1734166234067,-562.39780176,0.00028761,7]
[345345139,1734166234077,-500.0,0.00028761,7]
[345345140,1734166234087,-500.0,0.00028761,7]
[345345141,1734166234097,-548.09733952,0.00028761,7]
[345345142,1734166234106,-500.0,0.00028762,7]
[345345143,1734166234116,-153.0,0.00028884,2]
[345345144,1734166234126,-153.0,0.00028884,2]
[345345145,1734166234135,-153.0,0.00028884,2]
[345345146,1734166234145,-153.0,0.00028884,2]
[345345147,1734166234154,-153.0,0.00028884,2]
[345345148,1734166234164,-153.0,0.00028884,2]
[345345149,1734166234174,-153.0,0.00028884,2]
[345345150,1734166234184,-153.0,0.00028884,2]
[345345151,1734166234194,-153.0,0.00028884,2]
[345345152,1734166234204,-153.0,0.00028884,2]
[345345153,1734166234214,-153.0,0.00028884,2]
[345345154,1734166234227,-153.0,0.00028892,2]
[345345155,1734166234236,-153.0,0.00028892,2]
[345345156,1734166234246,-303.16066212,0.00029,2]
[345345157,1734166234255,-303.16369506,0.00029,2]
[345345158,1734166234265,-1742.3,0.00029034,7]
[345345159,1734166234275,-500.0,0.00029034,7]
[345345160,1734166234285,-500.0,0.00029034,7]
[345345161,1734166234294,-500.0,0.00029034,7]
[345345162,1734166234304,-500.0,0.00029034,7]
[345345163,1734166234313,-1060.61,0.00029034,7]
[345345164,1734166234323,-500.0,0.00029034,7]
[345345165,1734166234333,-2515.35,0.00029034,7]
[345345166,1734166234343,-500.0,0.00029034,7]
[345345167,1734166234355,-513.38,0.00029034,7]
[345345168,1734166234365,-500.0,0.00029034,7]
[345345169,1734166234375,-977.76,0.00029034,5]
[345345170,1734166234384,-500.0,0.00029035,7]
[345345171,1734166234394,-500.0,0.00029035,7]
[345345172,1734166234403,-477.06793264,0.00029035,7]
[345345173,1734166234413,-500.0,0.00029035,7]
[345345174,1734166234423,-500.0,0.00029035,7]
[345345175,1734166234433,-500.0,0.00029035,7]
[345345176,1734166234442,-506.05523934,0.00029036,7]
[345345177,1734166234452,-303.16066212,0.0002929,2]
[345345178,1734166234461,-303.16369506,0.0002929,2]
[345345179,1734166234471,-1742.3,0.00029308,7]
[345345180,1734166234481,-500.0,0.00029308,7]
[345345181,1734166234490,-500.0,0.00029308,7]
[345345182,1734166234499,-500.0,0.00029308,7]
[345345183,1734166234508,-500.0,0.00029308,7]
[345345184,1734166234518,-1060.61,0.00029308,7]
[345345185,1734166234527,-2515.35,0.00029308,7]
[345345186,1734166234537,-500.0,0.00029308,7]
[345345187,1734166234547,-513.38,0.00029308,7]
[345345188,1734166234556,-500.0,0.00029308,7]
[345345189,1734166234566,-977.76,0.00029308,5]
[345345190,1734166234575,-500.0,0.00029309,7]
[345345191,1734166234584,-500.0,0.00029309,7]
[345345192,1734166234593,-500.0,0.00029309,7]
[345345193,1734166234605,-500.0,0.00029309,7]
[345345194,1734166234615,-500.0,0.00029309,7]
[345345195,1734166234624,-303.16066212,0.0002958,2]
[345345196,1734166234634,-303.16369506,0.0002958,2]
[345345197,1734166234643,-1742.3,0.00029582,7]
[345345198,1734166234653,-500.0,0.00029582,7]
[345345199,1734166234664,-500.0,0.00029582,7]
[345345200,1734166234673,-500.0,0.00029582,7]
[345345201,1734166234683,-500.0,0.00029582,7]
[345345202,1734166234693,-1060.61,0.00029582,7]
[345345203,1734166234703,-2515.35,0.00029582,7]
[345345204,1734166234712,-610.39912548,0.00029582,7]
[345345205,1734166234722,-513.38,0.00029582,7]
[345345206,1734166234732,-500.0,0.00029582,7]
[345345207,1734166234741,-977.76,0.00029582,5]
[345345208,1734166234751,-500.0,0.00029583,7]
[345345209,1734166234761,-500.0,0.00029583,7]
[345345210,1734166234770,-500.0,0.00029583,7]
[345345211,1734166234780,-500.0,0.00029583,7]
[345345212,1734166234790,-500.0,0.00029583,7]
[345345213,1734166234799,-636.29164827,0.00029856,2]
[345345214,1734166234808,-1742.3,0.00029856,7]
[345345215,1734166234818,-500.0,0.00029856,7]
[345345216,1734166234828,-500.0,0.00029856,7]
[345345217,1734166234837,-397.01906691,0.00029856,7]
[345345218,1734166234848,-500.0,0.00029856,7]
[345345219,1734166234857,-1060.61,0.00029856,7]
[345345220,1734166234867,-2515.35,0.00029856,7]
[345345221,1734166234877,-513.38,0.00029856,7]
[345345222,1734166234887,-500.0,0.00029856,7]
[345345223,1734166234896,-977.76,0.00029856,5]
[345345224,1734166234905,-500.0,0.00029857,7]
[345345225,1734166234914,-500.0,0.00029857,7]
[345345226,1734166234924,-500.0,0.00029857,7]
[345345227,1734166234934,-500.0,0.00029857,7]
[345345228,1734166234943,-500.0,0.00029857,7]
[345345229,1734166234954,-303.16066212,0.0002987,2]
[345345230,1734166234963,-303.16369506,0.0002987,2]
[345345231,1734166234973,-5000.0,0.0003,10]
[345345232,1734166234983,-270.0,0.0003,2]
[345345233,1734166234993,-176.18119269,0.00030118,2]
[345345234,1734166235003,-360.0,0.00030119,10]
[345345235,1734166235012,-389.47556022,0.00030119,4]
[345345236,1734166235023,-301.77406666,0.0003012,2]
[345345237,1734166235032,-417.49174284,0.0003012,2]
[345345238,1734166235043,-22158.5264781,0.0003012,2]
[345345239,1734166235052,-795652.77838515,0.00030121,10]
[345345470,1734166239972,-176.18119268,0.00030118,2]
[345345472,1734166239981,-136106.62421465,0.00030121,10]
[345345799,1734166243149,-9829.69604819,0.00030121,10]
[345345811,1734166243258,-1196.0000005,0.00030121,10]
[345346170,1734166965347,169.797596,0.00013973,2]
[345346172,1734167271560,-762.5,0.00030121,120]
[345346173,1734167271584,-762.5,0.00030121,90]
[345346174,1734167271610,-473.45556116,0.00030121,120]
[345346175,1734167271634,-189.91823156,0.00030121,120]
[345346176,1734167271657,-809.53469729,0.00030121,120]
[345346177,1734167271685,-442.52984968,0.00030121,120]
[345346178,1734167271708,-198.65592286,0.00030121,30]
[345346179,1734167271733,-1019.1954581,0.00030121,120]
[345346180,1734167271758,-193.46614108,0.00030121,120]
[345346181,1734167271784,-411.732241,0.00030121,120]
[345346182,1734167271807,-1000.86513492,0.00030121,30]
[345346183,1734167271829,-1034.47110169,0.00030121,120]
[345346184,1734167271853,-162.96446924,0.00030121,120]
[345346185,1734167271877,-3485.69397207,0.00030121,120]
[345346186,1734167291884,1000001.0,0.00030122,29]
[345346187,1734167303037,1000002.0,0.00030122,29]
[345346188,1734167305423,1000003.0,0.00030122,29]
[345346189,1734167308085,1000004.0,0.00030122,29]
[345346190,1734167310584,1000005.0,0.00030122,29]
[345346191,1734167313197,1000006.0,0.00030122,29]
[345346193,1734167334650,762.5,0.00030122,120]
[345346306,1734167438317,-1132.4532312,0.00024953,2]
[345346308,1734167438327,-215.5925026,0.00026307,2]
[345346309,1734167438336,-181.333333,0.00026722,2]
[345346312,1734167438346,-1704.68,0.000274,2]
[345346314,1734167438355,-300.0,0.00027935,2]
[345346316,1734167438365,-300.0,0.00027935,2]
[345346319,1734167438374,-1320.21,0.00027936,7]
[345346322,1734167438383,-500.0,0.00027936,7]
[345346324,1734167438392,-500.0,0.00027936,7]
[345346326,1734167438401,-500.0,0.00027936,7]
[345346328,1734167438411,-500.0,0.00027936,7]
[345346330,1734167438422,-500.0,0.00027936,7]
[345346332,1734167438431,-579.36120566,0.00027936,7]
[345346334,1734167438440,-500.0,0.00027936,7]
[345346336,1734167438449,-500.0,0.00027936,7]
[345346338,1734167438458,-500.0,0.00027936,7]
[345346340,1734167438468,-500.0,0.00027936,7]
[345346342,1734167438478,-500.0,0.00027936,7]
[345346344,1734167438487,-500.0,0.00027936,7]
[345346346,1734167438496,-902.57,0.00027936,7]
[345346348,1734167438505,-2262.36,0.00027936,7]
[345346350,1734167438514,-500.0,0.00027936,7]
[345346352,1734167438523,-500.0,0.00027936,7]
[345346354,1734167438532,-500.0,0.00027936,7]
[345346356,1734167438541,-500.0,0.00027936,7]
[345346358,1734167438551,-500.0,0.00027936,7]
[345346360,1734167438560,-500.0,0.00027936,7]
[345346362,1734167438569,-879.42,0.00027936,5]
[345346364,1734167438579,-299.33471035,0.00027936,7]
[345346366,1734167438588,-500.0,0.00027936,7]
[345346368,1734167438597,-1704.59,0.00027936,7]
[345346370,1734167438606,-500.0,0.00027936,7]
[345346372,1734167438616,-500.0,0.00027936,7]
[345346374,1734167438625,-500.0,0.00027937,7]
[345346376,1734167438634,-500.0,0.00027937,7]
[345346378,1734167438644,-500.0,0.00027937,7]
[345346380,1734167438653,-500.0,0.00027937,7]
[345346382,1734167438662,-168.0,0.00027937,7]
[345346384,1734167438672,-500.0,0.00027937,7]
[345346386,1734167438681,-500.0,0.00027937,7]
[345346388,1734167438690,-500.0,0.00027937,7]
[345346390,1734167438700,-574.49914945,0.00027937,7]
[345346392,1734167438709,-500.0,0.00027937,7]
[345346394,1734167438718,-500.0,0.00027937,7]
[345346397,1734167438729,-361.79382346,0.00027937,7]
[345346399,1734167438741,-500.0,0.00027937,7]
[345346400,1734167438750,-500.0,0.00027937,7]
[345346403,1734167438759,-543.89304913,0.00027937,7]
[345346405,1734167438769,-500.0,0.00027937,7]
[345346406,1734167438778,-500.0,0.00027937,7]
[345346408,1734167438795,-500.0,0.00027937,2]
[345346410,1734167438806,-500.0,0.00027937,7]
[345346412,1734167438819,-500.0,0.00027937,7]
[345346414,1734167438828,-500.0,0.00027937,7]
[345346416,1734167438837,-500.0,0.00027937,7]
[345346418,1734167438847,-500.0,0.00027937,7]
[345346420,1734167438856,-556.64746315,0.00027937,7]
[345346422,1734167438865,-500.0,0.00027937,7]
[345346424,1734167438874,-500.0,0.00027937,7]
[345346426,1734167438883,-500.0,0.00027937,7]
[345346428,1734167438893,-1000.0,0.00027937,2]
[345346430,1734167438902,-500.0,0.00027937,7]
[345346432,1734167438913,-500.0,0.00027937,7]
[345346434,1734167438923,-500.0,0.00027937,7]
[345346436,1734167438932,-500.0,0.00027937,7]
[345346438,1734167438941,-500.0,0.00027937,7]
[345346440,1734167438951,-420.17764389,0.00027937,7]
[345346442,1734167438959,-500.0,0.00027938,7]
[345346444,1734167438969,-515.93465478,0.00027938,7]
[345346446,1734167438978,-211.24184666,0.00027999,2]
[345346448,1734167438987,-471.8129398,0.00027999,2]
[345346450,1734167438997,-247.33414287,0.00027999,2]
[345346452,1734167439006,-500.0,0.00027999,2]
[345346454,1734167439015,-500.0,0.00027999,2]
[345346456,1734167439025,-202.59818747,0.00027999,2]
[345346458,1734167439034,-445.77875683,0.00027999,2]
[345346461,1734167439043,-199.97514516,0.00027999,2]
[345346462,1734167439052,-556267.0,0.00028,2]
[345346465,1734167439061,-1320.21,0.0002821,7]
[345346467,1734167439071,-500.0,0.0002821,7]
[345346469,1734167439080,-500.0,0.0002821,7]
[345346471,1734167439089,-500.0,0.0002821,7]
[345346473,1734167439098,-500.0,0.0002821,7]
[345346475,1734167439109,-500.0,0.0002821,7]
[345346477,1734167439118,-500.0,0.0002821,7]
[345346479,1734167439127,-500.0,0.0002821,7]
[345346481,1734167439136,-500.0,0.0002821,7]
[345346483,1734167439146,-500.0,0.0002821,7]
[345346485,1734167439155,-500.0,0.0002821,7]
[345346487,1734167439165,-500.0,0.0002821,7]
[345346489,1734167439174,-902.57,0.0002821,7]
[345346491,1734167439183,-2262.36,0.0002821,7]
[345346493,1734167439192,-500.0,0.0002821,7]
[345346495,1734167439202,-500.0,0.0002821,7]
[345346497,1734167439211,-500.0,0.0002821,7]
[345346499,1734167439220,-500.0,0.0002821,7]
[345346501,1734167439230,-500.0,0.0002821,7]
[345346503,1734167439239,-500.0,0.0002821,7]
[345346505,1734167439248,-879.42,0.0002821,5]
[345346506,1734167439257,-500.0,0.0002821,7]
[345346509,1734167439267,-1704.59,0.0002821,7]
[345346511,1734167439276,-500.0,0.0002821,7]
[345346513,1734167439285,-500.0,0.0002821,7]
[345346515,1734167439294,-500.0,0.00028211,7]
[345346517,1734167439303,-500.0,0.00028211,7]
[345346518,1734167439312,-500.0,0.00028211,7]
[345346520,1734167439321,-500.0,0.00028211,7]
[345346522,1734167439330,-168.0,0.00028211,7]
[345346524,1734167439339,-500.0,0.00028211,7]
[345346527,1734167439349,-500.0,0.00028211,7]
[345346529,1734167439358,-500.0,0.00028211,7]
[345346531,1734167439367,-500.0,0.00028211,7]
[345346532,1734167439376,-500.0,0.00028211,7]
[345346535,1734167439386,-288.43371833,0.00028211,7]
[345346537,1734167439395,-500.0,0.00028211,7]
[345346538,1734167439404,-500.0,0.00028211,7]
[345346541,1734167439414,-500.0,0.00028211,7]
[345346542,1734167439423,-500.0,0.00028211,2]
[345346544,1734167439432,-500.0,0.00028211,7]
[345346546,1734167439441,-500.0,0.00028211,7]
[345346548,1734167439450,-500.0,0.00028211,7]
[345346550,1734167439460,-618.34189995,0.00028211,7]
[345346552,1734167439469,-500.0,0.00028211,7]
[345346554,1734167439478,-500.0,0.00028211,7]
[345346556,1734167439487,-500.0,0.00028211,7]
[345346559,1734167439496,-500.0,0.00028211,7]
[345346561,1734167439506,-1000.0,0.00028211,2]
[345346563,1734167439515,-500.0,0.00028211,7]
[345346565,1734167439525,-500.0,0.00028211,7]
[345346567,1734167439534,-500.0,0.00028211,7]
[345346569,1734167439543,-500.0,0.00028211,7]
[345346571,1734167439552,-500.0,0.00028211,7]
[345346573,1734167439562,-500.0,0.00028212,7]
[345346575,1734167439571,-500.0,0.00028273,5]
[345346577,1734167439579,-500.0,0.00028273,5]
[345346579,1734167439589,-1320.21,0.00028484,7]
[345346581,1734167439599,-500.0,0.00028484,7]
[345346583,1734167439608,-500.0,0.00028484,7]
[345346585,1734167439617,-500.0,0.00028484,7]
[345346587,1734167439626,-500.0,0.00028484,7]
[345346589,1734167439635,-500.0,0.00028484,7]
[345346591,1734167439644,-500.0,0.00028484,7]
[345346593,1734167439653,-500.0,0.00028484,7]
[345346595,1734167439662,-500.0,0.00028484,7]
[345346597,1734167439672,-500.0,0.00028484,7]
[345346599,1734167439682,-500.0,0.00028484,7]
[345346601,1734167439691,-500.0,0.00028484,7]
[345346603,1734167439700,-902.57,0.00028484,7]
[345346606,1734167439720,-2262.36,0.00028484,7]
[345346608,1734167439732,-500.0,0.00028484,7]
[345346610,1734167439742,-500.0,0.00028484,7]
[345346612,1734167439751,-500.0,0.00028484,7]
[345346614,1734167439760,-500.0,0.00028484,7]
[345346616,1734167439771,-879.42,0.00028484,5]
[345346618,1734167439780,-500.0,0.00028484,7]
[345346628,1734167439789,-1704.59,0.00028484,7]
[345346629,1734167439940,-500.0,0.00028484,7]
[345346630,1734167439950,-500.0,0.00028484,7]
[345346631,1734167439959,-500.0,0.00028485,7]
[345346632,1734167439969,-500.0,0.00028485,7]
[345346633,1734167439978,-500.0,0.00028485,7]
[345346634,1734167439987,-500.0,0.00028485,7]
[345346635,1734167439996,-500.0,0.00028485,7]
[345346636,1734167440005,-500.0,0.00028485,7]
[345346638,1734167440014,-500.0,0.00028485,7]
[345346640,1734167440024,-500.0,0.00028485,7]
[345346642,1734167440033,-500.0,0.00028485,7]
[345346644,1734167440042,-500.0,0.00028485,7]
[345346646,1734167440051,-500.0,0.00028485,7]
[345346648,1734167440060,-500.0,0.00028485,2]
[345346650,1734167440069,-500.0,0.00028485,7]
[345346652,1734167440079,-500.0,0.00028485,7]
[345346654,1734167440088,-500.0,0.00028485,7]
[345346656,1734167440097,-500.0,0.00028485,7]
[345346658,1734167440106,-500.0,0.00028485,7]
[345346660,1734167440115,-500.0,0.00028485,7]
[345346662,1734167440125,-1000.0,0.00028485,2]
[345346664,1734167440134,-500.0,0.00028485,7]
[345346666,1734167440144,-162.25432473,0.00028485,7]
[345346667,1734167440153,-500.0,0.00028485,7]
[345346669,1734167440162,-500.0,0.00028485,7]
[345346672,1734167440172,-500.0,0.00028485,7]
[345346673,1734167440182,-426.256,0.0002861,2]
[345346675,1734167440191,-1320.21,0.00028758,7]
[345346677,1734167440200,-365.22691916,0.00028758,7]
[345346679,1734167440210,-500.0,0.00028758,7]
[345346681,1734167440220,-500.0,0.00028758,7]
[345346683,1734167440229,-500.0,0.00028758,7]
[345346686,1734167440239,-500.0,0.00028758,7]
[345346688,1734167440248,-605.41583852,0.00028758,7]
[345346690,1734167440257,-500.0,0.00028758,7]
[345346692,1734167440267,-902.57,0.00028758,7]
[345346694,1734167440276,-2262.36,0.00028758,7]
[345346696,1734167440285,-500.0,0.00028758,7]
[345346698,1734167440294,-500.0,0.00028758,7]
[345346700,1734167440303,-500.0,0.00028758,7]
[345346702,1734167440312,-500.0,0.00028758,7]
[345346704,1734167440321,-879.42,0.00028758,5]
[345346706,1734167440330,-500.0,0.00028758,7]
[345346708,1734167440339,-1704.59,0.00028758,7]
[345346710,1734167440349,-309.81801808,0.00028758,7]
[345346712,1734167440358,-500.0,0.00028758,7]
[345346714,1734167440367,-500.0,0.00028759,7]
[345346716,1734167440376,-500.0,0.00028759,7]
[345346718,1734167440385,-500.0,0.00028759,7]
[345346720,1734167440394,-500.0,0.00028759,7]
[345346722,1734167440403,-500.0,0.00028759,2]
[345346724,1734167440412,-500.0,0.00028759,7]
[345346726,1734167440423,-500.0,0.00028759,7]
[345346728,1734167440432,-500.0,0.00028759,7]
[345346730,1734167440442,-500.0,0.00028759,7]
[345346732,1734167440451,-500.0,0.00028759,7]
[345346734,1734167440460,-1000.0,0.00028759,2]
[345346736,1734167440469,-500.0,0.00028759,7]
[345346738,1734167440478,-500.0,0.00028759,7]
[345346740,1734167440487,-938.20862934,0.00028821,5]
[345346742,1734167440496,-1007.52677207,0.00028821,5]
[345346744,1734167440505,-153.0,0.00028916,2]
[345346746,1734167440514,-153.0,0.00028916,2]
[345346748,1734167440524,-153.0,0.00028916,2]
[345346750,1734167440533,-153.0,0.00028916,2]
[345346752,1734167440542,-153.0,0.00028916,2]
[345346754,1734167440551,-153.0,0.00028916,2]
[345346756,1734167440561,-153.0,0.00028916,2]
[345346758,1734167440570,-153.0,0.00028916,2]
[345346760,1734167440579,-153.0,0.00028916,2]
[345346762,1734167440588,-153.0,0.00028916,2]
[345346764,1734167440597,-153.0,0.00028916,2]
[345346766,1734167440606,-153.0,0.00028916,2]
[345346768,1734167440615,-153.0,0.00028916,2]
[345346770,1734167440624,-153.0,0.00028916,2]
[345346772,1734167440633,-153.0,0.00028916,2]
[345346774,1734167440643,-153.0,0.00028916,2]
[345346776,1734167440652,-153.0,0.00028916,2]
[345346778,1734167440661,-153.0,0.00028916,2]
[345346780,1734167440672,-153.0,0.00028916,2]
[345346782,1734167440686,-153.0,0.00028916,2]
[345346784,1734167440695,-153.0,0.00028916,2]
[345346786,1734167440705,-153.0,0.00028916,2]
[345346788,1734167440714,-153.0,0.00028916,2]
[345346790,1734167440724,-153.0,0.00028916,2]
[345346792,1734167440736,-153.0,0.00028916,2]
[345346794,1734167440744,-153.0,0.00028916,2]
[345346796,1734167440753,-153.0,0.00028916,2]
[345346798,1734167440762,-153.0,0.00028916,2]
[345346800,1734167440770,-153.0,0.00028916,2]
[345346801,1734167440781,-153.0,0.00028916,2]
[345346803,1734167440791,-153.0,0.00028916,2]